bitfinex/quotes_SOLUSD_20220218
["timestamp","ask_amount","ask_price","bid_price","bid_amount"]
[1645205417402,110.0,90.664,90.541,110.0]
[1645205417606,110.0,90.662,90.56,16.5659]
[1645205417804,5.766,90.661,90.551,110.0]
[1645205418005,0.25,90.661,90.572,110.0]
[1645205418604,0.25,90.661,90.576,2.6293831]
[1645205418804,0.25,90.661,90.577,0.25]
[1645205419006,43.38137751,90.666,90.591,110.0]
[1645205419208,43.38137751,90.666,90.592,0.25]
[1645205419505,43.38137751,90.666,90.58,12.82]
[1645205419705,43.38137751,90.666,90.581,6.0]
[1645205419906,43.38137751,90.666,90.572,6.0]
[1645205420209,43.38137751,90.666,90.56,12.82]
[1645205420406,46.7646,90.665,90.56,12.82]
[1645205420608,46.7646,90.665,90.569,110.0]
[1645205420806,110.0,90.663,90.56,12.82]
[1645205421011,5.766,90.662,90.56,12.82]
[1645205421209,6.0,90.661,90.56,12.82]
[1645205421414,5.766,90.66,90.56,12.82]
[1645205421609,5.766,90.66,90.559,110.0]
[1645205421811,2.6293831,90.659,90.514,5.74906367]
[1645205422015,5.769,90.658,90.54,16.5697]
[1645205422217,5.769,90.658,90.533,48.8657]
[1645205422218,5.0,90.641,90.533,48.8657]
[1645205422416,110.0,90.639,90.501,8.38074274]
[1645205422614,30.2978,90.64,90.501,8.38074274]
[1645205422615,110.0,90.629,90.502,48.8657]
[1645205422814,110.0,90.627,90.502,48.8657]
[1645205423012,110.0,90.625,90.502,48.8657]
[1645205423211,29.3956,90.62,90.51,16.5763]
[1645205423510,0.25,90.619,90.51,16.5763]
[1645205423709,0.25,90.619,90.502,48.8657]
[1645205423710,0.25,90.619,90.511,2.8793831]
[1645205423910,5.519,90.618,90.502,48.8657]
[1645205424109,22.9671,90.617,90.503,6.25]
[1645205424311,5.521,90.616,90.53,16.5716]
[1645205424509,0.25,90.615,90.53,16.5716]
[1645205424710,63.97845856,90.628,90.532,110.0]
[1645205424909,63.97845856,90.628,90.534,110.0]
[1645205425110,63.97845856,90.628,90.533,6.25]
[1645205425111,63.97845856,90.628,90.535,6.25]
[1645205425311,63.97845856,90.628,90.536,6.25]
[1645205425716,63.97845856,90.628,90.56,16.5653]
[1645205425911,39.64185856,90.628,90.56,16.5653]
[1645205426410,28.2788,90.656,90.561,0.25]
[1645205426617,28.2788,90.656,90.551,23.284]
[1645205426618,22.7598,90.656,90.551,23.284]
[1645205426811,23.68907803,90.655,90.552,0.25]
[1645205427014,6.0,90.654,90.552,0.25]
[1645205427311,6.0,90.654,90.57,16.5652]
[1645205427514,44.45884348,90.653,90.571,0.25]
[1645205427710,6.0,90.652,90.571,6.25]
[1645205427911,6.0,90.652,90.572,115.518]
[1645205428114,23.1284,90.695,90.574,110.0]
[1645205428310,6.0,90.694,90.59,16.5594]
[1645205428515,5.516,90.708,90.6,12.82]
[1645205428740,14.987019,90.689,90.601,121.765]
[1645205428937,14.987019,90.689,90.601,124.3943831]
[1645205429136,14.987019,90.689,90.601,138.73933162]
[1645205429334,14.987019,90.689,90.602,2.6293831]
[1645205429534,14.987019,90.689,90.62,16.5541]
[1645205429735,6.0,90.688,90.63,12.82]
[1645205429937,53.23928637,90.687,90.631,11.765]
[1645205430136,53.23928637,90.687,90.63,12.82]
[1645205430540,6.0,90.688,90.63,12.82]
[1645205430744,5.515,90.732,90.64,16.5486]
[1645205430945,424.03057122,90.958,90.651,110.0]
[1645205430946,1.51997409,90.758,90.651,110.0]
[1645205431140,1.51997409,90.789,90.697,2.6293831]
[1645205431337,1.51997409,90.806,90.712,110.0]
[1645205431541,53.39554566,90.805,90.714,110.0]
[1645205431738,53.39554566,90.805,90.731,110.0]
[1645205431942,53.39554566,90.805,90.732,0.25]
[1645205432138,53.39554566,90.805,90.74,12.82]
[1645205432539,53.39554566,90.805,90.72,12.82]
[1645205432739,19.34195212,90.804,90.72,12.82]
[1645205432938,19.34195212,90.804,90.721,0.25]
[1645205433342,19.34195212,90.804,90.73,16.5342]
[1645205433540,5.758,90.803,90.73,16.5342]
[1645205433741,5.758,90.803,90.71,12.82]
[1645205434042,2.6293831,90.802,90.711,0.25]
[1645205434240,0.25,90.801,90.711,0.25]
[1645205434440,0.25,90.803,90.72,16.537]
[1645205436744,5.508,90.802,90.7,12.82]
[1645205437045,5.508,90.802,90.701,6.0]
[1645205437046,0.25,90.801,90.701,6.0]
[1645205437244,0.25,90.801,90.68,67.9548]
[1645205437442,5.51,90.8,90.681,0.25]
[1645205437643,110.25,90.799,90.68,67.9548]
[1645205437844,110.0,90.797,90.68,29.3638]
[1645205438042,5.76,90.796,90.68,29.3638]
[1645205438243,5.51,90.796,90.68,29.3638]
[1645205438445,0.25,90.795,90.68,29.3638]
[1645205438642,5.51,90.794,90.68,29.3638]
[1645205438843,0.25,90.793,90.68,29.3638]
[1645205439044,5.51,90.792,90.681,0.25]
[1645205439243,16.5443,90.79,90.69,16.5422]
[1645205439444,5.76,90.789,90.69,16.5422]
[1645205439642,110.0,90.788,90.69,16.5422]
[1645205439842,5.51,90.787,90.69,16.5422]
[1645205440043,5.51,90.789,90.69,16.5422]
[1645205441052,5.51,90.789,90.69,29.3622]
[1645205441247,43.89961336,90.791,90.691,5.51]
[1645205441448,43.89961336,90.791,90.7,16.5402]
[1645205441449,5.51,90.79,90.7,16.5402]
[1645205441643,5.51,90.79,90.7,29.3602]
[1645205442044,5.51,90.79,90.7,12.82]
[1645205442244,110.0,90.789,90.7,12.82]
[1645205442445,5.759,90.788,90.7,12.82]
[1645205442644,0.25,90.788,90.701,110.0]
[1645205442844,43.89961336,90.791,90.702,0.25]
[1645205443049,43.89961336,90.791,90.704,110.0]
[1645205443347,43.89961336,90.791,90.706,110.0]
[1645205443550,43.89961336,90.791,90.705,6.25]
[1645205443551,43.89961336,90.791,90.72,12.82]
[1645205443748,43.89961336,90.791,90.721,121.759]
[1645205444345,5.509,90.833,90.721,121.759]
[1645205444545,114.6,90.838,90.721,121.759]
[1645205444546,5.508,90.835,90.722,2.6293831]
[1645205444746,5.508,90.84,90.724,110.0]
[1645205444946,5.507,90.844,90.725,11.757]
[1645205445145,5.507,90.846,90.725,11.757]
[1645205445345,39.48268825,90.833,90.73,16.5342]
[1645205445545,39.48268825,90.833,90.731,11.757]
[1645205446347,0.25,90.832,90.75,16.5306]
[1645205446752,39.48268825,90.833,90.75,16.5306]
[1645205446753,39.48268825,90.833,90.76,12.82]
[1645205447548,39.48268825,90.833,90.76,29.3491]
[1645205447750,39.48268825,90.833,90.76,16.5291]
[1645205447950,5.756,90.832,90.74,12.82]
[1645205448651,0.25,90.832,90.74,29.3529]
[1645205449049,5.507,90.831,90.74,29.3529]
[1645205449248,0.25,90.83,90.74,29.3529]
[1645205449650,5.507,90.829,90.74,29.3529]
[1645205449852,0.25,90.828,90.74,29.3529]
[1645205450050,5.507,90.827,90.74,16.5329]
[1645205450250,0.25,90.826,90.74,16.5329]
[1645205450452,5.507,90.827,90.74,16.5329]
[1645205450652,39.48268825,90.833,90.741,0.25]
[1645205450862,39.48268825,90.833,90.76,16.5295]
[1645205451052,39.48268825,90.833,90.761,5.756]
[1645205451257,1.51997409,90.867,90.761,8.3853831]
[1645205451455,23.844,90.869,90.761,8.3853831]
[1645205451652,23.844,90.869,90.762,2.6293831]
[1645205451853,23.844,90.869,90.763,11.755]
[1645205452053,23.844,90.869,90.77,16.527]
[1645205452054,5.505,90.868,90.77,16.527]
[1645205452254,41.76112785,90.867,90.77,16.527]
[1645205452455,5.505,90.866,90.77,16.527]
[1645205452656,8.1343831,90.866,90.77,16.527]
[1645205452855,1.51997409,90.864,90.77,16.527]
[1645205453058,5.505,90.863,90.771,0.25]
[1645205453257,1.51997409,90.862,90.78,16.5266]
[1645205453459,1.51997409,90.864,90.78,16.5266]
[1645205453656,0.25,90.863,90.78,16.5266]
[1645205453859,0.25,90.865,90.78,16.5266]
[1645205454257,43.28110194,90.867,90.78,16.5266]
[1645205454258,0.25,90.866,90.78,16.5266]
[1645205454958,0.25,90.866,90.781,110.0]
[1645205455163,1.51997409,90.866,90.801,110.0]
[1645205455360,41.76112785,90.867,90.802,0.25]
[1645205455759,1.51997409,90.88,90.802,0.25]
[1645205455960,1.51997409,90.888,90.803,110.0]
[1645205456160,1.51997409,90.893,90.803,110.0]
[1645205456362,1.51994755,90.866,90.805,110.0]
[1645205456560,0.25,90.865,90.807,110.0]
[1645205456760,45.17495044,90.865,90.809,110.0]
[1645205456961,45.17495044,90.865,90.82,16.52]
[1645205457362,45.17495044,90.865,90.8,55.0619]
[1645205457563,45.17495044,90.865,90.768,5.503]
[1645205457763,45.17495044,90.865,90.78,12.82]
[1645205458163,1.51997409,90.863,90.78,12.82]
[1645205458364,1.76997409,90.862,90.8,16.5231]
[1645205458564,0.25,90.862,90.8,16.5231]
[1645205459467,0.25,90.864,90.8,16.5231]
[1645205460066,0.25,90.864,90.801,110.0]
[1645205460266,0.25,90.864,90.811,110.0]
[1645205460465,1.51994755,90.866,90.813,110.0]
[1645205460466,0.25,90.865,90.813,110.0]
[1645205460665,0.25,90.865,90.812,6.25]
[1645205460666,0.25,90.865,90.815,110.0]
[1645205460868,0.25,90.865,90.817,110.0]
[1645205461067,0.25,90.865,90.821,110.0]
[1645205461265,0.25,90.865,90.83,16.5167]
[1645205461469,1.51994755,90.866,90.83,16.5167]
[1645205461868,1.51981241,90.865,90.83,16.5167]
[1645205462268,1.51981241,90.865,90.831,116.0]
[1645205462484,1.51997409,90.901,90.841,110.0]
[1645205462685,1.51997409,90.901,90.832,5.503]
[1645205462686,1.51997409,90.901,90.851,110.0]
[1645205462889,1.51997409,90.909,90.853,110.0]
[1645205463087,1.51997409,90.925,90.855,110.0]
[1645205463286,1.51997409,90.928,90.871,110.0]
[1645205463486,1.51997409,90.955,90.91,16.504]
[1645205463685,1.51997409,90.962,90.891,110.0]
[1645205463888,1.51997409,90.963,90.893,110.0]
[1645205464088,1.51997409,90.967,90.894,6.25]
[1645205464286,45.30116253,90.962,90.9,55.0034]
[1645205464485,45.30116253,90.962,90.9,16.5055]
[1645205464686,45.30116253,90.962,90.88,12.82]
[1645205464883,45.30116253,90.962,90.881,11.749]
[1645205465084,0.25,90.961,90.882,110.0]
[1645205465284,0.25,90.961,90.901,110.0]
[1645205465483,0.25,90.961,90.903,110.0]
[1645205465683,0.25,90.961,90.92,16.5023]
[1645205466984,1.51997409,90.995,90.92,16.5023]
[1645205467188,1.51997409,90.999,90.92,16.5023]
[1645205467383,1.51997409,91.0,90.92,16.5023]
[1645205467585,1.51997409,90.998,90.92,16.5023]
[1645205468084,55.20721441,90.997,90.92,16.5023]
[1645205468286,0.25,90.996,90.921,110.0]
[1645205468488,55.20721441,90.997,90.94,16.4972]
[1645205468687,55.20721441,90.997,90.941,6.25]
[1645205468886,55.20721441,90.997,90.95,12.82]
[1645205469087,23.302,91.032,90.95,12.82]
[1645205469296,1.51997409,91.033,90.952,110.0]
[1645205469489,22.7875,91.067,90.954,110.0]
[1645205469490,1.51997409,91.041,90.954,110.0]
[1645205469788,1.51997409,91.072,90.971,110.0]
[1645205469992,49.093,91.089,90.981,110.0]
[1645205470194,49.093,91.089,90.98,12.82]
[1645205470195,40.30532664,91.073,90.983,110.0]
[1645205470393,49.093,91.089,90.985,110.0]
[1645205470594,1.51997409,91.099,90.987,110.0]
[1645205470797,1.51997409,91.103,91.001,110.0]
[1645205471092,2.6293831,91.116,91.003,110.0]
[1645205471093,1.51997409,91.105,91.003,110.0]
[1645205471293,47.57397987,91.104,91.005,110.0]
[1645205471492,47.57397987,91.104,91.006,11.49]
[1645205471699,5.49,91.103,91.01,12.82]
[1645205471895,27.54980744,91.103,91.01,12.82]
[1645205472093,2.6293831,91.102,90.99,12.82]
[1645205472293,5.74,91.101,90.953,5.492]
[1645205472492,5.74,91.101,90.991,110.0]
[1645205472493,25.17042434,91.101,90.991,110.0]
[1645205472693,0.25,91.101,90.992,5.49]
[1645205472892,19.43042434,91.1,91.02,16.4814]
[1645205473094,0.25,91.099,91.02,16.4814]
[1645205473393,19.43042434,91.1,91.02,16.4814]
[1645205473597,47.57397987,91.104,91.03,12.82]
[1645205473794,47.57397987,91.104,91.031,0.25]
[1645205473996,24.7931,91.122,91.03,12.82]
[1645205473997,5.49,91.121,91.03,12.82]
[1645205474195,24.7931,91.122,91.05,16.4762]
[1645205474399,24.1481,91.128,91.05,16.4762]
[1645205474796,24.1481,91.128,91.051,0.25]
[1645205475004,1.51997409,91.157,91.051,112.8793831]
[1645205475212,1.51997409,91.174,91.1,16.4669]
[1645205475499,1.51997409,91.199,91.11,12.82]
[1645205475700,1.51997409,91.199,91.12,12.82]
[1645205475901,0.852127,91.23,91.13,12.82]
[1645205476100,0.852127,91.23,91.121,11.735]
[1645205476101,0.852127,91.23,91.14,12.82]
[1645205476299,0.852127,91.23,91.17,16.4512]
[1645205476599,0.852127,91.23,91.171,6.0]
[1645205476905,110.0,91.309,91.18,12.82]
[1645205476906,2.6293831,91.264,91.18,12.82]
[1645205477100,2.6293831,91.264,91.181,11.731]
[1645205477398,51.68091358,91.263,91.181,11.731]
[1645205477599,51.68091358,91.263,91.181,6.0]
[1645205477798,5.481,91.262,91.15,5.481]
[1645205477997,5.481,91.262,91.14,16.4532]
[1645205478197,5.481,91.262,91.115,2.6293831]
[1645205478399,12.82,91.26,91.12,12.82]
[1645205478598,5.0,91.232,91.08,12.82]
[1645205478798,40.62435748,91.23,91.09,12.82]
[1645205479000,5.484,91.229,91.091,5.484]
[1645205479198,0.25,91.228,91.091,115.484]
[1645205479398,0.25,91.228,91.091,5.484]
[1645205479600,8.1133831,91.227,91.091,5.484]
[1645205479800,0.25,91.226,91.09,12.82]
[1645205480006,5.484,91.225,91.092,2.6293831]
[1645205480201,0.25,91.224,91.093,5.484]
[1645205480400,5.484,91.223,91.09,29.2819]
[1645205480602,2.6293831,91.224,91.09,29.2819]
[1645205480901,2.6293831,91.222,91.09,29.2819]
[1645205481102,5.735,91.221,91.09,29.2819]
[1645205481304,5.735,91.221,91.091,8.1143831]
[1645205481902,5.735,91.221,91.091,2.6293831]
[1645205482103,2.6293831,91.22,91.074,2.6293831]
[1645205482305,5.0,91.182,91.074,2.6293831]
[1645205482502,12.82,91.18,91.03,12.82]
[1645205482801,5.738,91.179,91.023,2.6293831]
[1645205483005,0.25,91.179,91.031,8.1793831]
[1645205483204,0.25,91.179,91.05,16.469]
[1645205483403,0.25,91.179,91.06,12.82]
[1645205483604,0.25,91.179,91.061,11.737]
[1645205483915,0.25,91.205,91.061,11.737]
[1645205484106,0.25,91.205,91.061,6.25]
[1645205484107,39.20775915,91.203,91.061,6.25]
[1645205484303,5.736,91.202,91.062,8.1153831]
[1645205484506,5.736,91.202,91.063,6.25]
[1645205484705,5.736,91.202,91.071,110.0]
[1645205484706,0.25,91.202,91.071,110.0]
[1645205484902,0.25,91.202,91.08,12.82]
[1645205485102,0.25,91.202,91.081,11.736]
[1645205485305,5.485,91.201,91.081,5.486]
[1645205485511,0.25,91.2,91.058,5.486]
[1645205485707,5.486,91.199,91.047,2.6293831]
[1645205485907,0.25,91.198,91.048,11.737]
[1645205486107,5.487,91.197,91.05,12.82]
[1645205486306,0.25,91.196,91.051,11.487]
[1645205486507,5.487,91.195,91.051,11.487]
[1645205486707,0.25,91.194,91.051,14.1163831]
[1645205486908,5.487,91.193,91.052,16.00020302]
[1645205487107,0.25,91.192,91.054,110.0]
[1645205487307,0.25,91.192,91.05,12.82]
[1645205487308,62.27806659,91.19,91.055,11.487]
[1645205487505,5.0,91.172,91.02,12.82]
[1645205487705,110.0,91.17,91.021,6.0]
[1645205487907,110.0,91.168,91.021,6.0]
[1645205488105,5.488,91.167,91.021,6.0]
[1645205488305,5.488,91.167,91.022,110.0]
[1645205488306,0.25,91.166,91.022,110.0]
[1645205488505,5.488,91.165,91.022,110.0]
[1645205488706,0.25,91.164,91.022,110.0]
[1645205488907,5.488,91.163,91.023,5.488]
[1645205489105,0.25,91.162,91.023,5.488]
[1645205489305,0.25,91.162,91.024,0.25]
[1645205489306,5.488,91.161,91.024,0.25]
[1645205489507,0.25,91.16,91.021,0.25]
[1645205489708,5.489,91.159,91.021,6.0]
[1645205489916,5.489,91.159,91.02,12.82]
[1645205489917,110.0,91.149,91.02,12.82]
[1645205490118,159.58899382,91.148,91.0,12.82]
[1645205490306,0.25,91.147,91.001,5.49]
[1645205490507,5.49,91.146,91.001,5.49]
[1645205490805,12.82,91.14,91.003,110.0]
[1645205491006,5.74,91.139,91.005,110.0]
[1645205491205,5.74,91.139,91.007,110.0]
[1645205491411,5.49,91.139,91.02,12.82]
[1645205491607,44.09999382,91.148,91.021,121.739]
[1645205492009,8.1183831,91.147,91.021,5.739]
[1645205492207,8.1183831,91.147,91.022,6.0]
[1645205492410,2.6293831,91.146,91.023,0.25]
[1645205492606,5.489,91.145,91.023,0.25]
[1645205492807,5.489,91.145,91.023,110.25]
[1645205493013,44.09999382,91.148,91.025,110.0]
[1645205493209,5.489,91.159,91.031,110.0]
[1645205493409,5.489,91.159,91.033,110.0]
[1645205493611,5.51,91.168,91.035,110.0]
[1645205493808,10.998,91.168,91.037,110.0]
[1645205494009,10.998,91.168,91.05,12.82]
[1645205494209,0.25,91.167,91.051,6.25]
[1645205494409,5.51,91.168,91.051,6.25]
[1645205494410,5.51,91.168,91.052,115.487]
[1645205494709,5.51,91.168,91.054,110.0]
[1645205494915,5.51,91.168,91.056,110.0]
[1645205495111,5.51,91.168,91.055,11.737]
[1645205495112,5.51,91.168,91.071,110.0]
[1645205495311,5.51,91.168,91.073,110.0]
[1645205495512,5.51,91.168,91.075,110.0]
[1645205495713,5.51,91.168,91.09,12.82]
[1645205495913,5.51,91.168,91.08,12.82]
[1645205496113,8.3663831,91.167,91.07,12.82]
[1645205496313,2.8793831,91.167,91.08,12.82]
[1645205496515,0.25,91.167,91.081,6.0]
[1645205496715,0.25,91.167,91.08,12.82]
[1645205496914,5.51,91.168,91.082,110.0]
[1645205497115,5.51,91.168,91.083,6.0]
[1645205497316,5.51,91.168,91.084,0.25]
[1645205497516,5.51,91.168,91.083,6.0]
[1645205497716,5.51,91.168,91.08,12.82]
[1645205497915,118.1163831,91.167,91.08,12.82]
[1645205498118,110.0,91.165,91.041,5.487]
[1645205498317,1.51997409,91.161,91.04,29.292]
[1645205498518,1.51997409,91.144,91.041,6.0]
[1645205498717,1.51997409,91.14,91.042,110.0]
[1645205498919,5.739,91.139,91.041,6.0]
[1645205499119,110.0,91.138,91.015,5.488]
[1645205499319,1.51997409,91.129,91.02,12.82]
[1645205499519,1.51997409,91.127,91.021,6.25]
[1645205499721,1.51997409,91.127,91.022,110.0]
[1645205500025,1.51997409,91.12,91.024,110.0]
[1645205500318,1.51997409,91.11,91.02,12.82]
[1645205500518,0.25,91.109,91.01,16.4761]
[1645205500718,1.76997409,91.109,91.012,110.0]
[1645205500919,1.76997409,91.109,91.031,110.0]
[1645205500920,0.25,91.109,91.031,110.0]
[1645205501121,0.25,91.109,91.032,5.49]
[1645205501321,0.25,91.109,91.033,0.25]
[1645205501525,0.25,91.124,91.034,5.49]
[1645205501723,1.51997409,91.12,91.035,0.25]
[1645205501923,1.51997409,91.12,91.033,2.8793831]
[1645205502128,1.51997409,91.121,91.035,110.0]
[1645205502323,1.51997409,91.123,91.037,110.0]
[1645205502527,1.51997409,91.123,91.039,110.0]
[1645205502726,1.51997409,91.121,91.041,110.0]
[1645205502925,50.78635678,91.12,91.043,110.0]
[1645205503129,49.26638269,91.12,91.045,110.0]
[1645205503328,49.26638269,91.12,91.046,6.25]
[1645205503525,1.51997409,91.119,91.046,6.25]
[1645205503727,1.51997409,91.115,91.011,5.489]
[1645205503926,1.51997409,91.115,91.01,29.2985]
[1645205503927,1.51997409,91.115,91.012,0.25]
[1645205504126,1.51997409,91.098,91.012,0.25]
[1645205504329,1.76997409,91.097,91.012,110.25]
[1645205504527,0.25,91.097,91.014,110.0]
[1645205504728,0.25,91.109,91.021,110.0]
[1645205504933,1.51997409,91.117,91.031,110.0]
[1645205505134,1.51997409,91.128,91.033,110.0]
[1645205505326,1.51997409,91.131,91.035,175.98]
[1645205505528,42.25533872,91.131,91.037,110.0]
[1645205505728,42.25533872,91.131,91.06,16.469]
[1645205505929,1.51997409,91.126,91.061,0.25]
[1645205506328,0.25,91.125,91.061,0.25]
[1645205506532,1.76997409,91.125,91.061,0.25]
[1645205506731,1.51997409,91.124,91.061,0.25]
[1645205506931,0.25,91.123,91.061,0.25]
[1645205507532,0.25,91.123,91.062,5.488]
[1645205507533,1.51997409,91.121,91.062,5.488]
[1645205507735,1.51997409,91.118,91.064,110.0]
[1645205507935,0.25,91.117,91.066,110.0]
[1645205508233,1.51997409,91.116,91.068,110.0]
[1645205508534,1.76997409,91.115,91.05,12.82]
[1645205508733,1.76997409,91.115,91.03,12.82]
[1645205508734,1.51997409,91.101,91.03,12.82]
[1645205508937,1.76997409,91.1,91.031,6.0]
[1645205509333,0.25,91.1,91.05,16.4752]
[1645205509536,0.25,91.1,91.051,110.0]
[1645205509834,0.25,91.101,91.053,110.0]
[1645205510034,1.51997409,91.103,91.054,6.0]
[1645205510234,1.51997409,91.087,91.05,12.82]
[1645205510439,1.51997409,91.087,91.029,110.0]
[1645205510440,0.25,91.086,91.029,110.0]
[1645205510737,1.51997409,91.083,91.04,16.4768]
[1645205510935,0.25,91.082,91.041,6.0]
[1645205511157,1.76997409,91.082,91.04,16.4768]
[1645205511356,0.25,91.082,91.04,16.4768]
[1645205511558,1.51997409,91.076,91.04,16.4768]
[1645205511756,0.25,91.075,91.04,16.4768]
[1645205512157,1.51997409,91.076,91.041,110.25]
[1645205512360,1.51997409,91.079,91.041,110.25]
[1645205512556,1.51997409,91.086,91.041,110.25]
[1645205512759,0.25,91.085,91.043,110.0]
[1645205512960,0.25,91.085,91.045,110.0]
[1645205513156,0.25,91.085,91.046,0.25]
[1645205513356,0.25,91.085,91.044,0.25]
[1645205513558,1.51997409,91.083,91.021,5.49]
[1645205513759,1.51997409,91.071,91.01,12.82]
[1645205513957,1.51997409,91.062,91.01,12.82]
[1645205514160,1.51997409,91.06,90.99,12.82]
[1645205514357,1.51997409,91.06,90.986,6.15]
[1645205514358,1.51997409,91.058,90.991,116.0]
[1645205514558,0.25,91.057,90.991,116.0]
[1645205514762,1.51997409,91.062,91.001,110.0]
[1645205514957,1.51997409,91.063,91.003,110.0]
[1645205515161,0.25,91.062,91.005,110.0]
[1645205515359,1.51997409,91.069,91.007,110.0]
[1645205515561,1.51997409,91.069,91.011,110.0]
[1645205515761,1.51997409,91.068,91.013,110.0]
[1645205515959,1.51997409,91.071,91.014,0.25]
[1645205516159,1.51997409,91.071,91.02,16.4812]
[1645205516360,1.51997409,91.068,91.0,12.82]
[1645205516559,0.25,91.067,91.0,12.82]
[1645205516760,1.51997409,91.06,90.97,12.82]
[1645205516961,55.62929745,91.059,90.971,6.25]
[1645205517161,55.62929745,91.059,90.971,0.25]
[1645205517362,57.14927154,91.059,90.971,110.25]
[1645205517562,0.25,91.059,91.0,16.485]
[1645205517962,1.51997409,91.056,91.0,16.485]
[1645205518163,1.51997409,91.051,91.0,16.485]
[1645205518365,0.25,91.05,91.0,16.485]
[1645205519564,0.25,91.053,91.0,16.485]
[1645205519967,0.25,91.055,91.0,16.485]
[1645205520567,1.51997409,91.059,91.0,16.485]
[1645205520568,0.25,91.058,91.0,16.485]
[1645205520769,1.76997409,91.058,91.0,16.485]
[1645205520969,0.25,91.058,91.0,16.485]
[1645205521369,0.25,91.058,90.98,54.95]
[1645205521370,1.51997409,91.05,90.98,16.4895]
[1645205521569,1.51997409,91.046,90.96,67.7847]
[1645205521771,1.51997409,91.043,90.95,12.82]
[1645205522069,42.06827048,91.049,90.926,5.494]
[1645205522070,1.51997409,91.025,90.931,110.0]
[1645205522268,52.04769606,91.024,90.931,110.0]
[1645205522468,1.51997409,91.023,90.931,110.0]
[1645205522870,0.25,91.022,90.931,110.0]
[1645205523270,0.25,91.022,90.932,0.25]
[1645205523469,0.25,91.022,90.94,16.4967]
[1645205523670,0.25,91.022,90.951,110.0]
[1645205523871,0.25,91.03,90.953,110.0]
[1645205524072,0.25,91.03,90.952,5.745]
[1645205524073,1.51997409,91.041,90.955,110.0]
[1645205524273,0.25,91.047,90.955,110.0]
[1645205524274,0.25,91.04,90.956,0.25]
[1645205524475,0.25,91.04,90.961,110.0]
[1645205524677,0.25,91.04,90.963,110.0]
[1645205524875,0.25,91.04,90.971,110.0]
[1645205525073,0.25,91.04,90.981,110.0]
[1645205525274,1.76997409,91.059,90.981,110.0]
[1645205525475,47.02308239,91.058,90.982,0.25]
[1645205525674,0.25,91.057,90.982,0.25]
[1645205525881,0.25,91.057,90.951,5.493]
[1645205525882,1.51997409,91.055,90.951,5.493]
[1645205526075,1.51997409,91.042,90.948,110.0]
[1645205526274,1.51997409,91.042,90.94,6.0]
[1645205526476,1.51997409,91.036,90.94,6.0]
[1645205526676,5.495,91.035,90.92,12.82]
[1645205526878,1.51997409,91.025,90.92,12.82]
[1645205527076,51.31099623,91.024,90.92,12.82]